bitfinex-derivatives/quotes_BNBF0:USTF0_20241230
["timestamp","ask_amount","ask_price","bid_price","bid_amount"]
[1735522604335,0.28475425,702.36,701.05,1.05042694]
[1735522605227,0.28475425,702.36,701.04,1.05042694]
[1735522606533,0.28475425,702.36,701.05,1.05042694]
[1735522607431,0.28475425,702.36,701.0,1.05042694]
[1735522608231,0.28475425,702.36,700.99,1.05042694]
[1735522609338,0.28475425,702.36,700.89,1.05042694]
[1735522609733,0.28475425,702.36,700.89,7.27111065]
[1735522610035,0.28475425,702.36,700.9,6.22068371]
[1735522610235,0.28475425,702.36,700.91,3.42351914]
[1735522610434,0.28475425,702.36,701.03,1.05042694]
[1735522611636,0.28475425,702.36,701.04,1.05042694]
[1735522612536,0.28475425,702.36,701.01,7.27111065]
[1735522612732,0.28475425,702.36,701.02,3.42351914]
[1735522612936,0.28475425,702.36,701.03,2.79716457]
[1735522613137,0.28475425,702.36,701.04,3.42351914]
[1735522613635,0.28475425,702.36,701.05,2.79716457]
[1735522613829,0.28475425,702.36,701.06,3.42351914]
[1735522614232,0.28475425,702.36,701.07,2.79716457]
[1735522614435,0.28475425,702.36,701.22,1.05042694]
[1735522615633,0.28475425,702.36,701.38,1.05042694]
[1735522616736,0.28475425,702.36,701.43,1.05042694]
[1735522617840,0.28475425,702.36,701.49,1.05042694]
[1735522618840,0.28475425,702.36,701.35,1.05042694]
[1735522619939,0.28475425,702.36,701.38,1.05042694]
[1735522621034,0.28475425,702.36,701.47,1.05042694]
[1735522622244,0.28475425,702.36,701.71,1.05042694]
[1735522623541,0.28475425,702.36,701.54,1.05042694]
[1735522624642,0.28475425,702.36,701.52,6.19809411]
[1735522624843,0.28475425,702.36,701.53,1.79145532]
[1735522625141,0.28475425,702.36,701.53,3.40987483]
[1735522625347,0.28475425,702.36,701.54,6.1978439]
[1735522625543,0.28475425,702.36,701.55,1.79145532]
[1735522625738,0.28475425,702.36,701.46,1.05042694]
[1735522626540,1.06351553,703.6,701.46,1.05042694]
[1735522627139,0.26188631,703.59,701.31,1.05042694]
[1735522628045,0.26188631,703.59,701.28,6.19054014]
[1735522628244,0.26188631,703.59,701.29,6.19054014]
[1735522628540,0.26188631,703.59,701.3,6.19054014]
[1735522628743,0.26187632,703.58,701.31,1.78951755]
[1735522628939,0.26187632,703.58,701.31,6.18884625]
[1735522629142,0.26187632,703.58,701.32,6.18884625]
[1735522629445,0.26187632,703.58,701.33,3.40483692]
[1735522629643,0.26187632,703.58,701.33,6.18884625]
[1735522629846,0.26188631,703.59,701.34,3.40483692]
[1735522630145,0.26186387,703.58,701.34,6.18884625]
[1735522630446,0.26186387,703.58,701.35,6.18884625]
[1735522630639,0.26188631,703.59,697.0,6.80585788]
[1735522630640,0.26188631,703.59,701.36,6.18884625]
[1735522630839,0.26188631,703.59,701.36,2.78400933]
[1735522631042,0.26188631,703.59,701.37,1.78545826]
[1735522631242,0.26188631,703.59,701.29,6.17694267]
[1735522631442,0.26188631,703.59,701.3,3.39886017]
[1735522631646,0.26188631,703.59,701.31,2.7780825]
[1735522631844,0.26188631,703.59,701.32,3.39886017]
[1735522632146,0.61703109,704.1,701.09,1.05042694]
[1735522632341,1.06351553,704.36,701.09,1.05042694]
[1735522632546,0.26175785,704.09,701.09,1.05042694]
[1735522632843,0.26175785,704.08,701.09,1.05042694]
[1735522633049,0.26175785,704.08,701.23,1.33564006]
[1735522633440,0.26175785,704.35,701.23,1.33564006]
[1735522633843,0.26175785,704.35,701.23,0.28521312]
[1735522634039,0.26175785,704.34,701.23,0.28521312]
[1735522634247,1.06351553,704.46,701.23,0.28521312]
[1735522634443,0.26174485,704.45,701.23,0.28521312]
[1735522635346,0.26174485,704.44,701.23,0.28521312]
[1735522635542,0.26174485,704.43,701.23,0.28521312]
[1735522635746,0.26174485,704.42,701.23,0.28521312]
[1735522636344,0.26174485,704.66,701.23,0.28521312]
[1735522636539,0.26174485,704.41,701.23,0.28521312]
[1735522636748,0.26172047,704.4,701.23,0.28521312]
[1735522636946,0.26172047,704.66,701.23,0.28521312]
[1735522637344,0.26172047,704.39,701.23,0.28521312]
[1735522637542,0.26172047,704.39,701.23,3.06006338]
[1735522637744,0.26172047,704.65,701.24,3.39427936]
[1735522638245,0.26172047,704.38,701.41,0.28513993]
[1735522638449,0.26172047,704.37,701.41,0.28513993]
[1735522638644,0.26172047,704.36,701.41,0.28513993]
[1735522639051,0.26172047,704.35,701.41,0.28513993]
[1735522639245,0.2617344,704.35,701.41,0.28513993]
[1735522639451,0.2617344,704.34,701.41,0.28513993]
[1735522639848,1.06351553,704.65,701.41,0.28513993]
[1735522640252,0.26173926,704.64,701.41,0.28513993]
[1735522641253,0.26173926,704.63,701.41,0.28513993]
[1735522641452,0.26173926,704.62,701.41,0.28513993]
[1735522641851,0.61689452,705.19,701.41,0.28513993]
[1735522642047,0.26182045,704.61,701.41,0.28513993]
[1735522642454,0.87872522,705.18,701.41,0.28513993]
[1735522642653,0.87871528,705.17,701.41,0.28513993]
[1735522642955,1.05032359,704.25,701.41,0.28513993]
[1735522643347,0.26182045,704.24,701.41,0.28513993]
[1735522643748,0.26182045,704.23,701.41,0.28513993]
[1735522643954,0.26182045,704.22,701.41,0.28513993]
[1735522644153,0.26181133,704.21,701.41,0.28513993]
[1735522644748,0.26181133,704.2,701.41,0.28513993]
[1735522645353,0.26181133,704.19,701.41,0.28513993]
[1735522645854,1.05032359,704.11,701.41,0.28513993]
[1735522646156,0.26181133,704.1,701.41,0.28513993]
[1735522646357,0.26187457,704.09,701.41,0.28513993]
[1735522646557,1.05032359,704.11,701.41,0.28513993]
[1735522646756,1.05032359,704.03,701.41,0.28513993]
[1735522647058,0.26187566,704.02,701.41,0.28513993]
[1735522647258,0.26187566,704.01,701.41,0.28513993]
[1735522647457,0.26187566,704.0,701.41,0.28513993]
[1735522647660,0.26187566,704.02,701.41,0.28513993]
[1735522647854,0.26187566,704.01,701.41,0.28513993]
[1735522648157,0.26187566,704.08,701.41,0.28513993]
[1735522648352,1.05032359,704.09,701.41,0.28513993]
[1735522648751,0.26183179,704.08,701.41,0.28513993]
[1735522648957,0.2617999,704.07,701.41,0.28513993]
[1735522649358,0.2617999,704.06,701.41,0.28513993]
[1735522649554,0.2617999,704.05,701.41,0.28513993]
[1735522649757,1.05032359,704.12,701.41,0.28513993]
[1735522649758,0.2617999,704.04,701.41,0.28513993]
[1735522649959,0.2617999,704.03,701.41,0.28513993]
[1735522650160,1.05032359,704.04,701.41,0.28513993]
[1735522650357,0.2617999,704.02,701.41,0.28513993]
[1735522650558,0.2617999,704.01,701.41,0.28513993]
[1735522650755,1.05032359,704.04,701.41,0.28513993]
[1735522650756,0.2617999,704.0,701.41,0.28513993]
[1735522650956,0.2617999,703.99,701.41,0.28513993]
[1735522651153,0.2617999,704.03,701.41,0.28513993]
[1735522651355,0.26183486,704.02,701.41,0.28513993]
[1735522651560,0.26183486,704.01,701.41,0.28513993]
[1735522651955,0.26183486,704.0,701.41,0.28513993]
[1735522652460,1.05032359,703.94,701.41,0.28513993]
[1735522652760,0.26183486,703.93,701.41,0.28513993]
[1735522653155,0.26183486,703.92,701.41,0.28513993]
[1735522653357,1.05032359,703.87,701.41,0.28513993]
[1735522653559,0.26183486,703.86,701.41,0.28513993]
[1735522653759,0.26184858,703.85,701.41,0.28513993]
[1735522653957,0.26184858,703.84,701.41,0.28513993]
[1735522654159,1.05032359,703.78,701.41,0.28513993]
[1735522654661,0.26184858,703.77,701.41,0.28513993]
[1735522654862,0.26184858,703.76,701.41,0.28513993]
[1735522655057,0.26184858,703.75,701.41,0.28513993]
[1735522655263,0.26184858,703.74,701.41,0.28513993]
[1735522655560,0.26184858,703.73,701.41,0.28513993]
[1735522655761,1.05032359,703.61,701.53,1.03849822]
[1735522655962,0.26184858,703.6,701.63,0.28505052]
[1735522656154,1.05032359,703.61,701.63,0.28505052]
[1735522656356,0.26184468,703.6,701.63,0.28505052]
[1735522656555,1.05032359,703.53,701.66,1.03849822]
[1735522656856,1.05032359,703.53,701.68,0.28503021]
[1735522656857,0.26184468,703.52,701.68,0.28503021]
[1735522657959,0.26184468,703.54,701.68,0.28503021]
[1735522658159,0.26184468,703.51,701.68,0.28503021]
[1735522658361,1.05032359,703.55,701.68,0.28503021]
[1735522658865,7.55617536,718.95,701.68,0.28503021]
[1735522658866,1.05032359,703.7,701.71,1.03849822]
[1735522659057,0.26182133,703.69,701.71,1.03849822]
[1735522659762,1.05032359,703.62,701.68,0.28503021]
[1735522659962,0.26182133,703.61,701.68,0.28503021]
[1735522660560,0.26182133,703.61,701.68,1.32352843]
[1735522660857,0.2618151,703.6,701.68,1.32352843]
[1735522661054,1.05032359,703.73,701.68,1.32352843]
[1735522661055,0.2618151,703.59,701.68,1.32352843]
[1735522661256,0.26181484,703.58,701.68,1.32352843]
[1735522661457,0.26181484,703.72,701.68,1.32352843]
[1735522661662,0.61688314,704.36,701.74,1.03849822]
[1735522661663,0.26181484,703.57,701.74,1.03849822]
[1735522661864,1.31213843,703.71,701.74,1.03849822]
[1735522662061,0.26181484,703.7,701.74,1.03849822]
[1735522662460,1.05032359,703.6,701.68,0.28503021]
[1735522662660,0.26181484,703.59,701.68,0.28503021]
[1735522663659,0.26183058,703.58,701.72,1.03849822]
[1735522663862,0.26183058,703.57,701.72,1.03849822]
[1735522664061,0.26183058,703.62,701.72,1.03849822]
[1735522664261,0.26183058,703.61,701.72,1.03849822]
[1735522664467,0.26183058,703.62,701.72,1.03849822]
[1735522664667,0.26183058,703.62,701.68,0.28503021]
[1735522664668,1.31215417,703.6,701.7,1.03849822]
[1735522664866,0.26183058,703.59,701.7,1.03849822]
[1735522665664,1.05032359,703.61,701.72,1.03849822]
[1735522666061,0.26186467,703.6,701.72,1.03849822]
[1735522666769,1.05032359,703.69,701.49,1.03849822]
[1735522666966,0.26185593,703.68,701.49,1.03849822]
[1735522667869,1.05032359,703.67,701.46,1.03849822]
[1735522668170,0.26185593,703.66,701.46,1.03849822]
[1735522668573,0.26185593,703.66,701.13,3.39470184]
[1735522668867,0.26185593,704.43,701.14,2.7748505]
[1735522669172,0.26185593,704.42,701.15,3.39613071]
[1735522669375,0.26185593,704.41,701.15,3.39613071]
[1735522669566,0.26185593,704.41,701.16,2.7748505]
[1735522669771,0.26185593,704.41,701.17,3.39613071]
[1735522670169,1.06327179,703.78,701.56,1.05206224]
[1735522670872,0.26185593,703.77,701.56,1.05206224]
[1735522671074,1.06327179,703.78,701.56,1.05206224]
[1735522671475,0.26180013,703.76,701.56,1.05206224]
[1735522671776,1.06327179,703.62,701.91,1.05206224]
[1735522671969,0.26180013,703.61,701.91,1.05206224]
[1735522672472,1.06327179,703.43,702.01,1.05206224]
[1735522672878,0.26180013,703.42,702.01,1.05206224]
[1735522673373,1.06327179,703.41,702.05,1.05206224]
[1735522673776,0.2618319,703.4,702.05,1.05206224]
[1735522674282,0.2618319,703.4,702.03,1.05206224]
[1735522674580,1.06327179,703.41,702.03,1.05206224]
[1735522675376,0.61689086,703.87,702.13,1.05206224]
[1735522675377,1.06327179,703.44,702.13,1.05206224]
[1735522676478,1.06327179,703.54,702.15,1.05206224]
[1735522677578,1.06327179,703.61,702.32,1.05206224]
[1735522678381,1.06327179,703.61,702.28,1.05206224]
[1735522678678,0.26177622,703.6,702.28,1.05206224]
[1735522679278,1.06327179,703.55,702.2,1.05206224]
[1735522679574,0.26177622,703.54,702.2,1.05206224]
[1735522680380,1.06327179,703.48,702.1,1.05206224]
[1735522680575,0.26177622,703.47,702.1,1.05206224]
[1735522681481,1.06327179,703.46,702.07,1.05206224]
[1735522682276,1.06327179,703.49,702.1,1.05206224]
[1735522683282,1.06327179,703.59,702.04,1.05206224]
[1735522684182,1.06327179,703.62,702.08,1.05206224]
[1735522684385,0.26180897,703.61,702.08,1.05206224]
[1735522684587,1.06327179,703.62,702.08,1.05206224]
[1735522685286,1.06327179,703.61,702.1,1.05206224]
[1735522685481,1.32508016,703.61,702.1,1.05206224]
[1735522685786,1.06327179,703.61,702.1,1.05206224]
[1735522685984,0.26180457,703.6,702.1,1.05206224]
[1735522686186,1.06327179,703.59,702.09,1.05206224]
[1735522686388,0.26181528,703.58,702.09,1.05206224]
[1735522686586,1.06327179,703.59,702.09,1.05206224]
[1735522687189,1.06327179,703.59,702.06,1.05206224]
[1735522687386,1.06327179,703.59,702.08,0.28486782]
[1735522688491,1.32509197,703.58,702.08,0.28486782]
[1735522688688,0.26182018,703.57,702.08,0.28486782]
[1735522688893,1.06327179,703.58,702.08,0.28486782]
[1735522689293,0.61687336,704.12,702.08,0.28486782]
[1735522689294,1.06327179,703.53,702.08,0.28486782]
[1735522690186,0.61687704,704.09,702.08,0.28486782]
[1735522690187,1.06327179,703.6,702.08,0.28486782]
[1735522691194,1.06327179,703.61,702.08,0.28486782]
[1735522691595,0.26182582,703.6,702.08,0.28486782]
[1735522691895,1.06327179,703.57,702.08,0.28486782]
[1735522692795,0.26189286,703.56,702.08,0.28486782]
[1735522693207,1.06327179,703.51,702.08,0.28486782]
[1735522693391,0.26189286,703.5,702.08,0.28486782]
[1735522694192,1.06327179,703.42,702.08,0.28486782]
[1735522694691,0.26193629,703.41,702.08,0.28486782]
[1735522695692,1.06327179,703.31,702.08,0.28486782]
[1735522696093,0.26193629,703.3,702.08,0.28486782]
[1735522696697,1.06327179,703.2,702.08,0.28486782]
[1735522697298,1.06327179,703.4,702.08,0.28486782]
[1735522697596,0.26188077,703.39,702.08,0.28486782]
[1735522698398,1.06327179,703.4,702.08,0.28486782]
[1735522698598,1.06327179,703.55,702.08,0.28486782]
[1735522698795,0.26182441,703.54,702.08,0.28486782]
[1735522699095,1.06327179,703.55,702.08,0.28486782]
[1735522699498,8.51002689,710.69,702.08,0.28486782]
[1735522699499,1.06327179,703.66,702.08,0.28486782]
[1735522699700,0.26183127,703.65,702.08,0.28486782]
[1735522701594,0.26183127,703.68,702.08,0.28486782]
[1735522701793,1.06327179,703.69,702.08,0.28486782]
[1735522701993,0.26182023,703.68,702.08,0.28486782]
[1735522702702,1.32509202,703.68,702.08,0.28486782]
[1735522703002,0.26182023,703.67,702.08,0.28486782]
[1735522703603,1.06327179,703.69,702.08,0.28486782]
[1735522703604,0.26182023,703.68,702.08,0.28486782]
[1735522703802,0.26182023,703.67,702.08,0.28486782]
[1735522704204,0.26182023,703.66,702.08,0.28486782]
[1735522704401,0.26182023,703.65,702.08,0.28486782]
[1735522704601,1.06327179,703.76,702.08,0.28486782]
[1735522705801,1.06327179,703.94,702.08,0.28486782]
[1735522706198,0.26179187,703.93,702.08,0.28486782]
[1735522706600,0.26180964,703.92,702.08,0.28486782]
[1735522706799,0.26180964,703.93,702.08,0.28486782]
[1735522707109,1.06327179,703.9,702.08,0.28486782]
[1735522707401,0.26180964,703.89,702.08,0.28486782]
[1735522707998,1.06327179,703.86,702.08,0.28486782]
[1735522708506,0.26180964,703.85,702.08,0.28486782]
[1735522709206,0.261813,703.84,702.08,0.28486782]
[1735522709601,0.261813,703.83,702.08,0.28486782]
[1735522709802,1.06327179,703.88,702.08,0.28486782]
[1735522709803,0.261813,703.82,702.08,0.28486782]
[1735522710000,0.261813,703.87,702.08,0.28486782]
[1735522710400,0.261813,703.81,702.08,0.28486782]
[1735522710601,0.261813,703.86,702.08,0.28486782]
[1735522710802,0.261813,703.8,702.08,0.28486782]
[1735522711007,0.261813,703.79,702.08,0.28486782]
[1735522711305,0.261813,703.78,702.08,0.28486782]
[1735522711500,0.261813,703.77,702.08,0.28486782]
[1735522711900,1.06327179,703.89,702.08,0.28486782]
[1735522712105,0.26179086,703.76,702.08,0.28486782]
[1735522712307,0.26179086,703.75,702.08,0.28486782]
[1735522712605,0.26179086,703.74,702.08,0.28486782]
[1735522713004,1.06327179,704.35,702.08,0.28486782]
[1735522713005,0.26179086,703.73,702.08,0.28486782]
[1735522713205,0.26179086,703.72,702.08,0.28486782]
[1735522713608,0.26179086,703.82,702.08,0.28486782]
[1735522713808,1.06327179,703.83,702.08,0.28486782]
[1735522714003,0.26178945,703.82,702.08,0.28486782]
[1735522714406,0.26178945,703.83,702.08,0.28486782]
[1735522714709,0.26178945,703.82,702.08,0.28486782]
[1735522715006,0.26178945,703.81,702.08,0.28486782]
[1735522715404,0.26178945,703.84,702.08,0.28486782]
[1735522715609,0.26178945,703.83,702.08,0.28486782]
[1735522715810,0.26178945,703.82,702.08,0.28486782]
[1735522716205,0.26178945,703.81,702.08,0.28486782]
[1735522716408,0.26176551,703.8,702.08,0.28486782]
[1735522716810,1.06327179,703.92,702.08,0.28486782]
[1735522717210,0.26176285,703.91,702.08,0.28486782]
[1735522717805,0.26176285,703.93,702.08,0.28486782]
[1735522718004,0.26176285,703.9,702.08,0.28486782]
[1735522718405,1.06327179,703.94,702.08,0.28486782]
[1735522718406,0.26176285,703.92,702.08,0.28486782]
[1735522718612,1.06327179,703.9,702.08,0.28486782]
[1735522718811,0.26176285,703.89,702.08,0.28486782]
[1735522719519,1.32503464,703.89,702.08,0.28486782]
[1735522720014,0.26176285,703.88,702.08,0.28486782]
[1735522720414,1.06327179,703.87,702.08,0.28486782]
[1735522721510,1.06327179,704.14,702.08,0.28486782]
[1735522721511,1.06327179,703.88,702.08,0.28486782]
[1735522721914,0.26178911,703.86,702.08,0.28486782]
[1735522722814,0.26178461,703.85,702.08,0.28486782]
[1735522724115,0.26178461,703.84,702.08,0.28486782]
[1735522724419,0.26178461,703.89,702.08,0.28486782]
[1735522724715,1.06327179,703.9,702.08,0.28486782]
[1735522724716,0.26178461,703.88,702.08,0.28486782]
[1735522725011,1.06327179,703.87,702.1,1.05206224]
[1735522725214,0.26178461,703.86,702.12,0.28485159]
[1735522726216,0.26178461,703.85,702.12,0.28485159]
[1735522726416,0.26178461,703.87,702.12,0.28485159]
[1735522726716,0.26178461,703.86,702.12,0.28485159]
[1735522726915,0.26178461,703.85,702.12,0.28485159]
[1735522727111,0.26178461,703.84,702.12,0.28485159]
[1735522727316,0.26178461,703.88,702.12,0.28485159]
[1735522727513,0.26178461,703.83,702.12,0.28485159]
[1735522727713,0.26178461,703.82,702.12,0.28485159]
[1735522727914,0.26178461,703.88,702.12,0.28485159]
[1735522728109,0.26178461,703.81,702.12,0.28485159]
[1735522728517,0.26178461,703.8,702.12,0.28485159]
[1735522728716,1.06327179,703.87,702.12,0.28485159]
[1735522729613,1.06327179,704.06,702.12,0.28485159]
[1735522729819,0.26181221,704.05,702.12,0.28485159]
[1735522730720,1.06327179,704.02,702.12,0.28485159]
[1735522731020,0.26181221,704.01,702.12,0.28485159]
[1735522731418,0.26182366,704.0,702.12,0.28485159]
[1735522731622,0.26182366,703.99,702.12,0.28485159]
[1735522731822,1.06327179,703.94,702.12,0.28485159]
[1735522732221,0.26182366,703.93,702.12,0.28485159]
[1735522732616,1.06327179,703.82,702.12,0.28485159]
[1735522733622,1.06327179,703.78,702.12,0.28485159]
[1735522734823,1.06327179,703.73,702.12,0.28485159]
[1735522735919,1.06327179,703.77,702.12,0.28485159]
[1735522738824,0.26181523,703.76,702.12,0.28485159]
[1735522739625,1.06327179,703.64,702.12,0.28485159]
[1735522739921,0.26181523,703.63,702.12,0.28485159]
[1735522740828,1.06327179,703.54,702.12,0.28485159]
[1735522741222,0.26183034,703.53,702.12,0.28485159]
[1735522741425,1.06327179,703.54,702.12,0.28485159]
[1735522741625,1.06327179,703.48,702.12,0.28485159]
[1735522742823,1.06327179,703.8,702.12,0.28485159]
[1735522742824,1.06327179,703.57,702.13,1.05206224]
[1735522743028,0.26182629,703.56,702.15,0.28483942]
[1735522743624,1.06327179,703.52,702.15,0.28483942]
[1735522745027,1.06327179,703.53,702.15,0.28483942]
[1735522745323,0.26182187,703.52,702.15,0.28483942]
[1735522746129,1.06327179,703.53,702.15,0.28483942]
[1735522746430,1.06327179,703.47,702.15,0.28483942]
[1735522746828,0.26193973,703.46,702.15,0.28483942]
[1735522747428,1.06327179,703.47,702.15,0.28483942]
[1735522747635,0.26195908,703.45,702.15,0.28483942]
[1735522747831,0.26195908,703.46,702.15,0.28483942]
[1735522748032,1.06327179,703.33,702.15,0.28483942]
[1735522748434,0.26195908,703.32,702.15,0.28483942]
[1735522748931,1.06327179,703.3,702.15,0.28483942]
[1735522749135,0.26195908,703.29,702.15,0.28483942]
[1735522749732,1.06327179,703.3,702.15,0.28483942]
[1735522749932,0.26198678,703.29,702.15,0.28483942]
[1735522750737,0.26198678,703.28,702.15,0.28483942]
[1735522750935,0.26198678,703.27,702.15,0.28483942]
[1735522751132,0.26198678,703.33,702.15,0.28483942]
[1735522751339,0.26198678,703.32,702.15,0.28483942]
[1735522751534,0.26198678,703.31,702.15,0.28483942]
[1735522751739,0.26198678,703.42,702.15,0.28483942]
[1735522752040,0.26198678,703.41,702.15,0.28483942]
[1735522752243,0.26198848,703.4,702.15,0.28483942]
[1735522752436,0.26198848,703.42,702.15,0.28483942]
[1735522752641,0.26198848,703.41,702.15,0.28483942]
[1735522752838,0.26198848,703.4,702.15,0.28483942]
[1735522753236,0.26203166,703.39,702.15,0.28483942]
[1735522753432,0.26203166,703.39,701.22,1.05206224]
[1735522753633,0.26203166,703.38,701.32,0.28517652]
[1735522753837,0.26203166,703.45,701.32,0.28517652]
[1735522754034,0.26203166,703.44,701.32,0.28517652]
[1735522754239,0.26203166,703.55,701.32,0.28517652]
[1735522754436,1.06327179,703.56,701.32,0.28517652]
[1735522754640,0.26203224,703.54,701.32,0.28517652]
[1735522754840,0.26203224,703.53,701.32,0.28517652]
[1735522755035,1.06327179,703.52,701.32,0.28517652]
[1735522755436,0.26203224,703.51,701.32,0.28517652]
[1735522756337,0.26203224,703.5,701.32,0.28517652]
[1735522756541,0.26203224,703.49,701.32,0.28517652]
[1735522756838,0.26203224,703.48,701.32,0.28517652]
[1735522757042,0.26203131,703.47,701.32,0.28517652]
[1735522757537,1.06327179,703.57,701.32,0.28517652]
[1735522757736,0.26203131,703.56,701.32,0.28517652]
[1735522758236,0.26203131,703.55,701.32,0.28517652]
[1735522758442,0.26203131,703.54,701.32,0.28517652]
[1735522758644,0.26203131,703.53,701.32,0.28517652]
[1735522758840,0.26203131,703.52,701.32,0.28517652]
[1735522759040,0.26203131,703.51,701.32,0.28517652]
[1735522759241,0.26203131,703.5,701.32,0.28517652]
[1735522759542,0.26203253,703.49,701.32,0.28517652]
[1735522759743,1.32530432,703.48,701.32,0.28517652]
[1735522760036,0.26203253,703.47,701.32,0.28517652]
[1735522760237,1.06327179,703.48,701.32,0.28517652]
[1735522760238,0.26203253,703.46,701.32,0.28517652]
[1735522760638,0.26203253,703.45,701.32,0.28517652]
[1735522761041,1.32530432,703.44,701.32,0.28517652]
[1735522761438,0.26203253,703.43,701.32,0.28517652]
[1735522761837,1.06327179,703.44,701.32,0.28517652]
[1735522762037,0.26205455,703.43,701.32,0.28517652]
[1735522762243,0.26205455,703.42,701.32,0.28517652]
[1735522762544,0.26205455,703.41,701.32,0.28517652]
[1735522762737,0.26205455,703.4,701.32,0.28517652]
[1735522762938,0.26205455,703.39,701.32,0.28517652]
[1735522763137,1.06327179,703.37,701.32,0.28517652]
[1735522763543,0.26205455,703.36,701.32,0.28517652]
[1735522763945,1.06327179,703.34,701.32,0.28517652]
[1735522764445,0.26207139,703.33,701.32,0.28517652]
[1735522764843,0.26207139,703.32,701.32,0.28517652]
[1735522765344,0.26207139,703.31,701.32,0.28517652]
[1735522765545,1.06327179,703.29,701.32,0.28517652]
[1735522765741,0.26207139,703.28,701.32,0.28517652]
[1735522765946,0.26207139,703.27,701.32,0.28517652]
[1735522766343,1.06327179,703.25,701.32,0.28517652]
[1735522766647,0.26207139,703.24,701.32,0.28517652]
[1735522766945,0.2620937,703.24,701.32,0.28517652]
[1735522767548,0.2620937,703.23,701.32,0.28517652]
[1735522767741,0.2620937,703.39,701.32,0.28517652]
[1735522767941,0.2620937,703.38,701.32,0.28517652]
[1735522768247,1.06327179,703.4,701.32,0.28517652]
[1735522768248,0.2620937,703.37,701.32,0.28517652]
[1735522768441,0.2620937,703.36,701.32,0.28517652]
[1735522768747,1.06327179,703.4,701.32,0.28517652]
[1735522768748,0.2620937,703.35,701.32,0.28517652]
[1735522768949,0.2620937,703.34,701.32,0.28517652]
[1735522769148,0.61745651,704.06,701.32,0.28517652]
[1735522769149,0.26212266,703.33,701.32,0.28517652]
[1735522769347,0.26212266,703.32,701.32,0.28517652]
[1735522769542,0.26212266,703.36,701.32,0.28517652]
[1735522769742,0.26212266,703.31,701.32,0.28517652]
[1735522770148,0.26212266,703.3,701.32,0.28517652]
[1735522770347,0.26212266,703.29,701.32,0.28517652]
[1735522770547,0.26212266,703.28,701.32,0.28517652]
[1735522770743,0.26212266,703.27,701.32,0.28517652]
[1735522770950,0.26212266,703.26,701.32,0.28517652]
[1735522771143,0.26212266,703.25,701.32,0.28517652]
[1735522771350,0.26212266,703.24,701.32,0.28517652]
[1735522771543,0.26205539,703.23,701.32,0.28517652]
[1735522771741,0.26205539,703.22,701.32,0.28517652]
[1735522771947,0.26205539,703.21,701.32,0.28517652]
[1735522772353,0.26205539,703.2,701.32,0.28517652]
[1735522772545,0.26205539,703.19,701.32,0.28517652]
[1735522772744,0.26205539,703.18,701.32,0.28517652]
[1735522772950,0.26205539,703.33,701.32,0.28517652]
[1735522773149,0.26205539,703.32,701.32,0.28517652]
[1735522773349,0.26205539,703.31,701.32,0.28517652]
[1735522773551,0.26205539,703.3,701.32,0.28517652]
[1735522773749,0.26205539,703.29,701.32,0.28517652]
[1735522773945,1.06327179,703.3,701.32,0.28517652]
[1735522774249,0.2620339,703.29,701.32,0.28517652]
[1735522775446,1.06327179,703.36,701.32,0.28517652]
[1735522775447,0.2620339,703.28,701.32,0.28517652]
[1735522775652,0.2620339,703.27,701.32,0.28517652]
[1735522775853,0.2620339,703.26,701.32,0.28517652]
[1735522776051,0.2620339,703.25,701.32,0.28517652]
[1735522776355,0.2620339,703.24,701.32,0.28517652]
[1735522776655,0.2620339,703.23,701.32,0.28517652]
[1735522776855,0.2620339,703.35,701.32,0.28517652]
[1735522777052,0.26204807,703.34,701.32,0.28517652]
[1735522777251,1.06327179,703.29,701.32,0.28517652]
[1735522777451,0.26204807,703.28,701.32,0.28517652]
[1735522777654,0.26204807,703.27,701.32,0.28517652]
[1735522777851,0.26204807,703.26,701.32,0.28517652]
[1735522778059,1.06327179,703.16,701.32,0.28517652]
[1735522778256,0.26204807,703.15,701.32,0.28517652]
[1735522779055,0.26205756,703.14,701.32,0.28517652]
[1735522779357,1.06327179,703.08,701.32,0.28517652]
[1735522779560,0.26205756,703.07,701.32,0.28517652]
[1735522780159,1.06327179,703.02,701.32,0.28517652]
[1735522780359,0.26205756,703.01,701.32,0.28517652]
[1735522780962,0.26205425,703.0,701.32,0.28517652]
[1735522781158,0.26205425,703.01,701.32,0.28517652]
[1735522781359,1.06327179,702.92,701.32,0.28517652]
[1735522781556,0.26205425,702.91,701.32,0.28517652]
[1735522782862,1.06327179,702.87,701.32,0.28517652]
[1735522783059,0.26205425,702.86,701.32,0.28517652]
[1735522783867,1.06327179,702.87,701.32,0.28517652]
[1735522784063,0.26214194,702.86,701.32,0.28517652]
[1735522784264,1.06327179,702.69,701.32,0.28517652]
[1735522784464,0.26214194,702.68,701.32,0.28517652]
[1735522785465,1.06327179,702.65,701.32,0.28517652]
[1735522785760,0.26214194,702.64,701.32,0.28517652]
[1735522786162,1.32541373,702.64,701.32,0.28517652]
[1735522786364,1.06327179,702.64,701.32,0.28517652]
[1735522786565,0.26216721,702.63,701.32,0.28517652]
[1735522786961,1.06327179,702.64,701.32,0.28517652]
[1735522787361,8.4430751,711.7,701.32,0.28517652]
[1735522787362,1.06327179,702.61,701.32,0.28517652]
[1735522788568,1.06327179,702.82,701.32,0.28517652]
[1735522789465,0.54673089,702.81,701.32,0.28517652]